fUSD/lending_fUSD_20250325
["ID","MTS","AMOUNT","RATE_DAILY","PERIOD"]
[356647151,1742899847039,-177.13,0.000457,39]
[356647152,1742899847048,-177.13,0.000457,39]
[356647153,1742899847057,-500.0,0.00045753,120]
[356647154,1742899847067,-1052.29,0.00045779,2]
[356647155,1742899847076,-1400.0,0.00045872,120]
[356647156,1742899847086,-214.89158471,0.000459,10]
[356647157,1742899847095,-500.0,0.00046027,120]
[356647158,1742899847105,-1400.0,0.00046146,120]
[356647159,1742899847115,-151.0,0.00046146,14]
[356647160,1742899847124,-500.0,0.00046301,120]
[356647161,1742899847134,-270.24,0.00046301,2]
[356647162,1742899847143,-1400.0,0.0004642,120]
[356647163,1742899847152,-6941.4307353,0.00046475,15]
[356647164,1742899847162,-562.6275534,0.0004655,4]
[356647165,1742899847172,-357.134768,0.00046575,120]
[356647166,1742899847181,-408.561477,0.00046575,120]
[356647167,1742899847191,-166.457663,0.00046575,120]
[356647168,1742899847200,-500.43314713,0.00046575,120]
[356647169,1742899847209,-308.13156535,0.00046575,120]
[356647170,1742899847219,-501.49623479,0.00046575,120]
[356647171,1742899847228,-501.10394272,0.00046575,120]
[356647172,1742899847238,-504.48706099,0.00046575,120]
[356647173,1742899847249,-506.09043199,0.00046575,120]
[356647174,1742899847258,-511.74833376,0.00046575,120]
[356647175,1742899847267,-530.49853832,0.00046575,120]
[356647176,1742899847276,-513.76438078,0.00046575,120]
[356647177,1742899847285,-513.60085523,0.00046575,120]
[356647178,1742899847294,-522.4327017,0.00046575,120]
[356647179,1742899847303,-500.0,0.00046575,120]
[356647180,1742899847312,-513.00266287,0.00046575,120]
[356647181,1742899847321,-540.96367407,0.00046575,120]
[356647182,1742899847330,-510.39336273,0.00046575,120]
[356647183,1742899847339,-507.08989129,0.00046575,120]
[356647184,1742899847347,-503.08860871,0.00046575,120]
[356647185,1742899847356,-503.30941344,0.00046575,120]
[356647186,1742899847365,-500.0,0.00046575,120]
[356647187,1742899847374,-504.62398455,0.00046575,120]
[356647188,1742899847383,-512.20992498,0.00046575,120]
[356647189,1742899847393,-508.58880019,0.00046575,120]
[356647190,1742899847402,-509.6719383,0.00046575,120]
[356647191,1742899847412,-517.13586164,0.00046575,120]
[356647192,1742899847421,-511.32550812,0.00046575,120]
[356647193,1742899847431,-522.64824198,0.00046575,120]
[356647194,1742899847440,-511.19002478,0.00046575,120]
[356647195,1742899847450,-514.11150932,0.00046575,120]
[356647196,1742899847459,-516.94658555,0.00046575,120]
[356647197,1742899847469,-500.0,0.00046575,120]
[356647198,1742899847479,-517.50600725,0.00046575,120]
[356647199,1742899847488,-549.24147175,0.00046575,120]
[356647200,1742899847498,-509.8881038,0.00046575,120]
[356647201,1742899847508,-451.58138375,0.00046575,120]
[356647202,1742899847518,-509.10122285,0.00046575,120]
[356647203,1742899847528,-513.33204589,0.00046575,120]
[356647204,1742899847537,-516.1235189,0.00046575,120]
[356647205,1742899847547,-528.56800309,0.00046575,120]
[356647206,1742899847556,-620.95287406,0.00046575,120]
[356647207,1742899847566,-513.63720963,0.00046575,120]
[356647208,1742899847575,-520.15951067,0.00046575,120]
[356647209,1742899847585,-515.44414821,0.00046575,120]
[356647210,1742899847595,-502.59710816,0.00046575,120]
[356647211,1742899847605,-525.90038203,0.00046575,120]
[356647212,1742899847615,-341.02031166,0.00046575,120]
[356647213,1742899847624,-518.53014118,0.00046575,120]
[356647214,1742899847634,-537.43105187,0.00046575,120]
[356647215,1742899847643,-534.37540818,0.00046575,120]
[356647216,1742899847741,-530.44096052,0.00046575,120]
[356647217,1742899847750,-538.87585791,0.00046575,120]
[356647218,1742899847760,-503.07509582,0.00046575,120]
[356647219,1742899847769,-531.99129506,0.00046575,120]
[356647220,1742899847778,-502.37602658,0.00046575,30]
[356647221,1742899847787,-513.73431649,0.00046575,120]
[356647222,1742899847796,-545.63439119,0.00046575,120]
[356647223,1742899847805,-500.0,0.00046575,30]
[356647224,1742899847814,-515.77496942,0.00046575,120]
[356647225,1742899847824,-503.74280273,0.00046575,120]
[356647226,1742899847833,-526.59020082,0.00046575,120]
[356647227,1742899847842,-523.35339968,0.00046575,120]
[356647228,1742899847851,-505.46331772,0.00046575,120]
[356647229,1742899847861,-515.98528573,0.00046575,120]
[356647230,1742899847871,-514.72420584,0.00046575,120]
[356647231,1742899847880,-507.81849255,0.00046575,120]
[356647232,1742899847889,-553.97778373,0.00046575,120]
[356647233,1742899847898,-501.8163504,0.00046575,120]
[356647234,1742899847908,-584.12583658,0.00046575,120]
[356647235,1742899847917,-506.82201781,0.00046575,120]
[356647236,1742899847927,-567.73048454,0.00046575,120]
[356647237,1742899847937,-507.59604027,0.00046575,120]
[356647238,1742899847946,-516.03462912,0.00046575,120]
[356647239,1742899847955,-591.41464561,0.00046575,120]
[356647240,1742899847967,-516.99307834,0.00046575,60]
[356647241,1742899847976,-422.88651183,0.00046575,120]
[356647242,1742899847986,-197.93,0.00046575,14]
[356647243,1742899847996,-512.28093689,0.00046575,120]
[356647244,1742899848006,-502.16417528,0.00046575,120]
[356647245,1742899848015,-512.18548435,0.00046575,120]
[356647246,1742899848025,-500.0,0.00046575,120]
[356647247,1742899848035,-522.22255733,0.00046575,120]
[356647248,1742899848044,-509.93768383,0.00046575,120]
[356647249,1742899848053,-646.64848521,0.00046575,120]
[356647250,1742899848062,-554.04411493,0.00046575,120]
[356647251,1742899848072,-500.0,0.00046575,120]
[356647252,1742899848081,-530.62247467,0.00046575,120]
[356647253,1742899848090,-557.90735584,0.00046575,120]
[356647254,1742899848100,-500.0,0.00046575,2]
[356647255,1742899848109,-522.06403055,0.00046575,120]
[356647256,1742899848119,-2529.30693934,0.00046575,120]
[356647257,1742899848129,-525.22355244,0.00046575,120]
[356647258,1742899848140,-532.81757655,0.00046575,120]
[356647259,1742899848150,-511.68957338,0.00046575,120]
[356647260,1742899848159,-500.0,0.00046575,120]
[356647261,1742899848168,-506.56709551,0.00046575,120]
[356647262,1742899848178,-511.71943599,0.00046575,120]
[356647263,1742899848187,-524.22775392,0.00046575,120]
[356647264,1742899848197,-530.82969587,0.00046575,120]
[356647265,1742899848207,-515.44672729,0.00046575,120]
[356647266,1742899848216,-518.09125678,0.00046575,120]
[356647267,1742899848226,-510.83192896,0.00046575,120]
[356647268,1742899848237,-151.0,0.00046575,14]
[356647269,1742899848249,-151.0,0.00046575,14]
[356647270,1742899848258,-517.76454027,0.00046575,120]
[356647271,1742899848268,-500.0,0.00046575,120]
[356647272,1742899848277,-453.26571056,0.00046575,120]
[356647273,1742899848286,-500.0,0.00046575,120]
[356647274,1742899848296,-500.0,0.00046575,120]
[356647275,1742899848305,-500.0,0.00046575,120]
[356647276,1742899848315,-500.0,0.00046575,120]
[356647277,1742899848324,-509.87271839,0.00046575,120]
[356647278,1742899848334,-502.04890728,0.00046575,120]
[356647279,1742899848344,-155.85513962,0.00046575,120]
[356647280,1742900392104,204.99,0.00025,120]
[356647281,1742900398462,-227.14608347,0.00011,2]
[356647282,1742900403704,-22.85391653,0.00011,2]
[356647283,1742900403730,-129.40295382,0.000119,2]
[356647284,1742900597395,-714.9687,0.000119,2]
[356647285,1742900653239,5000.0,0.00031742,120]
[356647286,1742900733796,786.08247853,0.0002501,120]
[356647299,1742901032269,-14.95764618,0.000119,2]
[356647300,1742901032278,-274.54064466,0.000119,2]
[356647301,1742901032287,-150.0,0.00012049,2]
[356647302,1742901032297,-150.0,0.0001309,2]
[356647303,1742901032306,-150.0,0.00016192,2]
[356647304,1742901032316,-151.24,0.00026849,2]
[356647305,1742901032325,-157.85,0.000335,31]
[356647306,1742901032334,-157.85,0.000335,31]
[356647307,1742901032343,-159.9,0.000376,2]
[356647308,1742901032352,-157.85,0.000376,31]
[356647309,1742901032361,-157.85,0.000376,31]
[356647310,1742901032370,-157.85,0.000376,31]
[356647311,1742901032380,-157.85,0.000376,31]
[356647312,1742901032389,-241.931,0.00038279,2]
[356647313,1742901032398,-229.723,0.00038279,2]
[356647314,1742901032407,-679.05822724,0.0003999,2]
[356647315,1742901032416,-1121.873,0.00039999,56]
[356647316,1742901032426,-217.791,0.00039999,56]
[356647317,1742901032435,-27488.34385109,0.0004,120]
[356647318,1742901032446,-16923.5480617,0.0004,120]
[356647319,1742901032462,-388.10808721,0.0004,120]
[356647320,1742901032471,-153.0,0.000403,5]
[356647321,1742901032480,-970.0,0.000407,30]
[356647322,1742901032489,-6383.03087785,0.00040799,2]
[356647323,1742901032498,-150.0,0.00040899,4]
[356647324,1742901032507,-214.89158471,0.000409,8]
[356647325,1742901032516,-182.0,0.00041,14]
[356647326,1742901032525,-283.72945023,0.00041096,31]
[356647327,1742901032536,-216.27054977,0.00041096,31]
[356647328,1742901032545,-500.0,0.00041096,31]
[356647329,1742901032554,-500.0,0.00041096,31]
[356647330,1742901032563,-500.0,0.00041096,31]
[356647331,1742901032573,-300.03764907,0.00041096,31]
[356647332,1742901032584,-199.96235093,0.00041096,31]
[356647333,1742901032593,-423.10298,0.00041096,31]
[356647334,1742901032602,-446.74,0.00041416,2]
[356647335,1742901032611,-157.85,0.000416,31]
[356647336,1742901032620,-157.85,0.000416,31]
[356647337,1742901032629,-157.85,0.000416,31]
[356647338,1742901032638,-157.85,0.000416,31]
[356647339,1742901032649,-2708.62,0.00042897,2]
[356647340,1742901032660,-150.0,0.00042904,2]
[356647341,1742901032669,-250.0,0.0004312,2]
[356647342,1742901032679,-162.14,0.00043121,2]
[356647343,1742901032688,-200.0,0.00043135,2]
[356647344,1742901032698,-164.28,0.00043172,2]
[356647345,1742901032708,-1000.0,0.00043199,2]
[356647346,1742901032717,-155.26,0.00043202,2]
[356647347,1742901032727,-10767.6386752,0.00043322,2]
[356647348,1742901032738,-2325.40957656,0.00043322,2]
[356647349,1742901032760,-430.92019537,0.00043322,2]
[356647350,1742901032771,-10376.03155287,0.00043322,2]
[356647351,1742901032780,-155.26,0.00043375,2]
[356647352,1742901032789,-155.26,0.00043548,2]
[356647353,1742901032799,-6383.03087783,0.00043582,2]
[356647354,1742901032808,-446.74,0.0004368,2]
[356647355,1742901032817,-155.26,0.00043721,2]
[356647356,1742901032827,-155.26,0.00043894,2]
[356647357,1742901032836,-155.26,0.00044066,2]
[356647358,1742901032846,-155.26,0.00044239,2]
[356647359,1742901032855,-155.26,0.00044412,2]
[356647360,1742901032865,-169.25,0.00044477,2]
[356647361,1742901032874,-155.26,0.00044585,2]
[356647364,1742901032883,-155.26,0.00044758,2]
[356647366,1742901032892,-155.26,0.0004493,2]
[356647369,1742901032901,-1002.63955487,0.00045,4]
[356647372,1742901032911,-518.96816599,0.00045,114]
[356647375,1742901032920,-500.0,0.00045205,120]
[356647378,1742901032929,-157.75,0.00045469,120]
[356647381,1742901032939,-500.0,0.00045479,120]
[356647384,1742901032948,-6654.5173,0.00045535,2]
[356647385,1742901032958,-388.23014095,0.00045575,120]
[356647386,1742901032967,-3902.3952,0.00045635,2]
[356647387,1742901032976,-314.5458,0.00045635,2]
[356647388,1742901032985,-421.4109337,0.00045642,2]
[356647389,1742901032995,-157.85,0.000457,39]
[356647390,1742901033005,-157.85,0.000457,39]
[356647391,1742901033014,-157.85,0.000457,39]
[356647392,1742901033024,-157.85,0.000457,39]
[356647393,1742901033035,-2751.0,0.00045735,120]
[356647394,1742901033045,-500.0,0.00045753,120]
[356647395,1742901033055,-166.84,0.00045903,120]
[356647396,1742901033065,-421.4109337,0.00045925,2]
[356647397,1742901033075,-446.74,0.00045944,2]
[356647398,1742901033084,-500.0,0.00046027,120]
[356647399,1742901033093,-421.4109337,0.00046107,2]
[356647400,1742901033102,-301.73755605,0.0004611,2]
[356647401,1742901033112,-264.7869,0.00046275,2]
[356647402,1742901033121,-400.7164,0.00046275,2]
[356647403,1742901033130,-157.7499,0.00046275,2]
[356647404,1742901033140,-441.50939997,0.000463,120]
[356647405,1742901033149,-2500.0,0.00046301,120]
[356647406,1742901033159,-500.0,0.00046301,120]
[356647407,1742901033168,-6383.03087783,0.00046365,2]
[356647408,1742901033177,-1185.82066148,0.00046375,18]
[356647409,1742901033186,-35759.4256,0.00046375,2]
[356647410,1742901033195,-1000.0,0.00046375,2]
[356647411,1742901033205,-2500.0,0.00046375,2]
[356647412,1742901033215,-421.410934,0.00046394,2]
[356647413,1742901033224,-180.50280005,0.000464,28]
[356647414,1742901033234,-234.13591557,0.00046464,120]
[356647415,1742901033244,-57858.5829922,0.00046465,3]
[356647416,1742901033253,-372.2184,0.00046465,2]
[356647417,1742901033263,-5000.0,0.00046465,120]
[356647418,1742901033273,-35966.6375,0.00046475,2]
[356647419,1742901033283,-500.0,0.00046475,2]
[356647420,1742901033292,-1733.2756,0.00046475,2]
[356647421,1742901033301,-4480.7624,0.00046475,2]
[356647422,1742901033310,-57188.15791599,0.00046475,2]
[356647423,1742901033323,-652.73075561,0.00046475,2]
[356647429,1742901038266,-366.24348832,0.00046475,2]
[356647430,1742901038320,-7965.30304008,0.00046475,2]
[356647431,1742901038330,-402.07696992,0.00046475,2]
[356647432,1742901038341,-260.58,0.00046475,2]
[356647433,1742901038374,-363.90638154,0.00046475,2]
[356647442,1742901040479,-270.23314854,0.00046475,2]
[356647443,1742901040489,-893.99520185,0.00046475,2]
[356647444,1742901040535,-383.20832822,0.00046475,2]
[356647464,1742901043390,-262.80243605,0.00046475,2]
[356647467,1742901044272,-611.03624955,0.00046475,2]
[356647468,1742901046387,-851.40028433,0.00046475,2]
[356647469,1742901046398,-190.5830559,0.00046475,2]
[356647470,1742901046545,-809.4169441,0.00046475,2]
[356647471,1742901046556,-227.1461,0.00046475,10]
[356647472,1742901046565,-383.2061,0.00046475,10]
[356647473,1742901046575,-30.91153888,0.00046475,120]
[356647477,1742901909238,-176.91411,0.00012,2]
[356647478,1742901956045,-150.0,0.0001173,2]
[356647479,1742901973301,-475.59730418,0.0001173,2]
[356647480,1742901992185,-150.0,0.0001173,2]
[356647481,1742902022762,-276.55125496,0.00011729,2]
[356647482,1742902080694,395.10942161,0.0001,2]
[356647483,1742902080734,2164.13942591,0.0001,2]
[356647484,1742902080769,1644.51211723,0.0001,2]
[356647485,1742902080796,3275.04868858,0.0001,2]
[356647486,1742902080828,3275.04868858,0.0001,2]
[356647487,1742902080856,3275.04868858,0.0001,2]
[356647488,1742902080884,3275.04868858,0.0001,2]
[356647489,1742902080916,3275.04868858,0.0001,2]
[356647490,1742902080946,3275.04868858,0.0001,2]
[356647491,1742902080973,3275.04868858,0.0001,2]
[356647492,1742902081001,3275.04868858,0.0001,2]
[356647493,1742902081036,2195.04545292,0.0001,2]
[356647494,1742902081072,2905.45086584,0.0001,2]
[356647495,1742902081110,2303.26902592,0.0001,2]
[356647496,1742902081146,2255.20786882,0.0001,2]
[356647497,1742902081184,4253.08598675,0.0001,2]
[356647498,1742902081219,3095.53895155,0.0001,2]
[356647499,1742902081254,2855.76041324,0.0001,2]
[356647500,1742902081291,2488.47263183,0.0001,2]
[356647501,1742902081327,2156.06758879,0.0001,2]
[356647502,1742902081362,3049.66368375,0.0001,2]
[356647503,1742902081400,10858.79687212,0.0001,2]
[356647504,1742902081451,-150.0,0.0001,2]
[356647505,1742902111652,-155.51008316,0.0001,2]
[356647506,1742902116451,-215.16398446,9.999e-05,2]
[356647507,1742902116472,-573.22559562,0.0001,2]
[356647508,1742902122918,-247.159,0.0001,2]
[356647509,1742902143651,-171.59652938,0.0001,2]
[356647510,1742902153125,-4373.554976,0.0001,2]
[356647511,1742902153946,-152.91151117,0.0001,2]
[356647530,1742902231589,-150.0,9.999e-05,2]
[356647531,1742902231600,-274829.72707163,0.0001,2]
[356647532,1742902231611,-9004.89991618,0.0001,2]
[356647533,1742902231699,-874.49,0.0001,2]
[356647534,1742902231759,-899.55707564,0.0001,2]
[356647535,1742902231774,-4146.74378676,0.0001,2]
[356647551,1742902232324,-150.61478912,9.999e-05,2]
[356647552,1742902232347,-130.54925158,0.0001,2]
[356647561,1742902237465,-28502.75558575,0.0001,2]
[356647562,1742902237521,-304.17596594,0.0001,2]
[356647564,1742902238235,-150.0,0.0001,2]
[356647571,1742902239622,-10302.5070976,0.0001,2]
[356647572,1742902239635,-73494.43140333,0.0001,2]
[356647573,1742902239646,-150.0,0.00010815,2]
[356647574,1742902239656,-150.0,0.00011,2]
[356647575,1742902239666,-150.0,0.00011347,2]
[356647576,1742902239675,-2321.35443158,0.00011629,2]
[356647577,1742902239685,-112030.38976504,0.0001173,2]
[356647578,1742902239695,-2321.35443154,0.00011746,2]
[356647579,1742902239705,-263.0997251,0.00011799,2]
[356647580,1742902239715,-2321.35443154,0.00011862,2]
[356647581,1742902239723,-1000.0,0.00011899,2]
[356647582,1742902239734,-2321.35443154,0.00011979,2]
[356647583,1742902239743,-2437.72340312,0.00011996,2]
[356647584,1742902239752,-693.62609183,0.00011999,2]
[356647585,1742902239761,-14629.40779647,0.00012,2]
[356647586,1742902239773,-670.90430343,0.00012,2]
[356647587,1742902239784,-1230.9102667,0.00012,2]
[356647588,1742902239795,-727.36724171,0.00012,2]
[356647589,1742902239833,-4487.86932066,0.00012,2]
[356647591,1742902240023,-525.47595038,0.00012,2]
[356647605,1742902245431,-25147.00833686,0.00012,2]
[356647606,1742902245596,-12991.02794854,0.00012,2]
[356647614,1742902453950,5000.0,0.00031746,120]
[356647616,1742902567806,1000.0,0.00031746,30]
[356647617,1742902747985,3274.352858,7.945e-05,2]
[356647618,1742902802990,417.0,0.00025,60]
[356647619,1742903122057,211.08234,0.00012,6]
[356647622,1742903172457,150.002125,0.0002501,120]
[356647623,1742903174115,-263.0,0.00011631,2]
[356647624,1742903315589,-150.0,0.00011799,2]
[356647625,1742903315615,-162.02913889,0.00011859,2]
[356647626,1742903315642,-150.0,0.0001186,2]
[356647627,1742903315668,-151.06,0.000119,2]
[356647628,1742903315698,-1681.8849,0.000119,2]
[356647629,1742903315726,-826.5019,0.000119,2]
[356647630,1742903315754,-162.02913887,0.0001191,2]
[356647631,1742903315781,-7073.48549291,0.0001196,2]
[356647632,1742903315807,-179.72549638,0.0001196,2]
[356647633,1742903315832,-162.02913887,0.0001196,2]
[356647634,1742903315859,-2437.72340312,0.0001196,2]
[356647635,1742903315885,-501.05482876,0.00011973,2]
[356647636,1742903315910,-405.39114254,0.0001199,2]
[356647637,1742903315936,-1000.0,0.00011999,2]
[356647638,1742903315961,-693.62609183,0.00011999,2]
[356647639,1742903315987,-150.0,0.00011999,2]
[356647640,1742903316017,-505008.45932783,0.00012,2]
[356647649,1742903391114,-150.0,0.000119,2]
[356647650,1742903391241,-240.4038,0.000119,2]
[356647651,1742903391264,-354.49935551,0.0001196,2]
[356647652,1742903391287,-300.0,0.00011999,2]
[356647653,1742903391312,-1861999.27691793,0.00012,2]
[356647654,1742903401774,-182.333,0.00012,2]
[356647655,1742903408383,75.647142,7.945e-05,2]
[356647656,1742903408410,125.615127,7.945e-05,2]
[356647660,1742903431623,-1000.0,0.00011999,2]
[356647661,1742903431633,-222.65758095,0.00011999,2]
[356647662,1742903431645,-68.34241905,0.00011999,2]
[356647663,1742903431657,-185.03758093,0.00012,2]
[356647664,1742903431675,-5327.0056312,0.00012,2]
[356647665,1742903431781,-866.44188913,0.00012,2]
[356647666,1742903431793,-821.26328869,0.00012,2]
[356647667,1742903431805,-893.81180349,0.00012,2]
[356647668,1742903431816,-951.45819651,0.00012,2]
[356647669,1742903431828,-510.08110434,0.00012,2]
[356647670,1742903431839,-14002.64,0.00012,2]
[356647671,1742903431943,-6437.0524636,0.00012,2]
[356647672,1742903431955,-4942.8568448,0.00012,2]
[356647700,1742903437592,-536129.99899257,0.00012,2]
[356647701,1742903437642,-673.0503113,0.00012,2]
[356647702,1742903437749,-1657.64395826,0.00012,2]
[356647704,1742903437855,-437.795,0.00012,2]
[356647708,1742903439946,-179.72549637,0.0001193,2]
[356647709,1742903439956,-11268.65083341,0.00012,2]
[356647710,1742903439999,-357.67341096,0.00012,2]
[356647711,1742903440012,-2150.60600428,0.00012,2]
[356647723,1742903442741,-4668.06334763,0.00012,2]
[356647725,1742903443602,-4037.59999993,0.00012,2]
[356647726,1742903443614,-603.10146968,0.00012,2]
[356647727,1742903443637,-8483.65299157,0.00012,2]
[356647728,1742903443671,-344.10978337,0.00012,2]
[356647729,1742903443686,-912.22656609,0.00012,2]
[356647737,1742903445620,-451136.20346635,0.00012,2]
[356647739,1742903445908,-1505.81997889,0.00012,2]
[356647740,1742903445922,-3522.39415,0.00012,2]
[356647741,1742903445942,-7725.86383207,0.00012,2]
[356647745,1742903509322,-150.0,0.0001187,2]
[356647746,1742903522408,-163.33020746,0.0001187,2]
[356647747,1742903585940,-325.2421,0.0001187,2]
[356647748,1742903662480,-230.68395514,0.0001184,2]
[356647749,1742903741120,-158.38440415,0.0001184,2]
[356647751,1742903815980,-244.78187335,0.00011761,2]
[356647752,1742903892583,-150.98995775,0.00011761,2]
[356647753,1742903901141,-152.91151117,0.00011724,2]
[356647754,1742903910247,-216.07485828,0.00011724,2]
[356647755,1742903998923,-209.3327,0.00011,2]
[356647756,1742904043088,-40.6673,0.00011,2]
[356647757,1742904043112,-119.51757364,0.00011701,2]
[356647758,1742904062257,-292.5542481,0.00011701,2]
[356647759,1742904119262,-179.87709353,0.00011701,2]
[356647760,1742904123236,-168.48,0.00011701,2]
[356647761,1742904173088,-250.00582104,0.0001121,2]
[356647762,1742904182970,-202.43854032,0.00011191,2]
[356647763,1742904250764,5000.0,0.00031733,120]
[356647764,1742904329292,-152.91151117,0.00011161,2]
[356647765,1742904355196,-152.91151117,0.0001114,2]
[356647766,1742904414029,-253.59912675,0.00011077,2]
[356647767,1742904424762,-0.83087325,0.00011077,2]
[356647768,1742904424787,-153.95816816,0.00011102,2]
[356647769,1742904424811,-13.42259779,0.0001114,2]
[356647771,1742904440875,-1641.49,0.00011104,2]
[356647772,1742904446479,150.0,0.00011104,7]
[356647773,1742904483440,-272.1931,0.0001114,2]
[356647774,1742904508844,-400.2063,0.00011114,2]
[356647775,1742904519708,-158.24435286,0.00011084,2]
[356647776,1742904548820,-151.24,0.00011084,2]
[356647777,1742904619650,-292.04007199,0.00010959,2]
[356647783,1742904631815,-1707.95992801,0.00010959,2]
[356647784,1742904631826,-233.81,0.00011051,2]
[356647785,1742904631835,-1485.98564714,0.00011084,2]
[356647786,1742904631845,-1599.7937,0.00011114,2]
[356647787,1742904631855,-788.30279104,0.0001114,2]
[356647788,1742904631864,-150.0,0.0001115,2]
[356647789,1742904631874,-97.08848883,0.00011161,2]
[356647790,1742904631884,-150.0,0.00011181,2]
[356647791,1742904631894,-3722.66145968,0.00011191,2]
[356647792,1742904631903,-150.0,0.00011202,2]
[356647793,1742904631912,-150.0,0.00011209,2]
[356647794,1742904631922,-20108.74456714,0.0001121,2]
[356647795,1742904631945,-475.47500001,0.0001121,2]
[356647796,1742904631957,-285.01684996,0.0001121,2]
[356647797,1742904631974,-592.36206145,0.0001121,2]
[356647798,1742904631988,-6642.32301769,0.0001121,2]
[356647799,1742904632000,-1954.90241289,0.0001121,2]
[356647800,1742904632031,-1838.45085366,0.0001121,2]
[356647801,1742904632043,-4789.1282684,0.0001121,2]
[356647802,1742904632085,-13277.43366975,0.0001121,2]
[356647803,1742904632097,-3498.75320503,0.0001121,2]
[356647804,1742904632108,-3777.19374894,0.0001121,2]
[356647805,1742904632119,-914.98114799,0.0001121,2]
[356647806,1742904632140,-767.75993397,0.0001121,2]
[356647807,1742904632195,-639.900128,0.0001121,2]
[356647825,1742904634285,-152.91151117,0.0001121,2]
[356647830,1742904637853,-921.95780291,0.0001121,2]
[356647831,1742904637862,-169.25,0.00011332,2]
[356647832,1742904637872,-153.95816816,0.0001163,2]
[356647833,1742904637881,-237.53012171,0.00011643,2]
[356647834,1742904637891,-248.216,0.0001176,2]
[356647835,1742904637900,-2023.744,0.0001176,2]
[356647836,1742904637910,-33.14100722,0.0001188,2]
[356647837,1742904637921,-9206.99499998,0.0001188,2]
[356647838,1742904637933,-3760.0650156,0.0001188,2]
[356647839,1742904638055,-1578.33210702,0.0001188,2]
[356647840,1742904638067,-334.47,0.0001188,2]
[356647841,1742904638079,-417.59,0.0001188,2]
[356647842,1742904638095,-1596.32656997,0.0001188,2]
[356647843,1742904638106,-1973.77812,0.0001188,2]
[356647844,1742904638119,-2035.765428,0.0001188,2]
[356647846,1742904638131,-2172.528378,0.0001188,2]
[356647848,1742904638142,-2052.2052,0.0001188,2]
[356647849,1742904638154,-2063.57616,0.0001188,2]
[356647853,1742904638617,-345.0,0.0001188,2]
[356647862,1742904640555,-1196.26850523,0.0001188,2]
[356647863,1742904640565,-325.2421,0.000119,2]
[356647864,1742904640574,-240.4038,0.000119,2]
[356647865,1742904640584,-701.7514,0.000119,2]
[356647866,1742904640593,-336.72696249,0.000119,2]
[356647867,1742904640604,-221.24613751,0.000119,2]
[356647868,1742904640613,-119.36426246,0.000119,2]
[356647869,1742904640647,-89.96843754,0.000119,2]
[356647870,1742904640659,-519.9763,0.000119,2]
[356647871,1742904640668,-1106.6245,0.000119,2]
[356647872,1742904640677,-166.03939556,0.00011961,2]
[356647884,1742904643601,-11613.39384305,0.00011961,2]
[356647885,1742904643614,-13201.79603363,0.00011961,2]
[356647886,1742904643625,-304.017888,0.00011961,2]
[356647887,1742904643635,-500.0,0.00011973,2]
[356647888,1742904643647,-1000.0,0.00011999,2]
[356647889,1742904643660,-471285.28905354,0.00012,2]
[356647896,1742904644512,-443.04746471,0.00012,2]
[356647897,1742904644593,-383.20832822,0.00012,2]
[356647902,1742904646071,-2716.985,0.00012,2]
[356647903,1742904694252,185.18518,0.00012,6]
[356647904,1742904723153,-368.22971684,0.0001178,2]
[356647909,1742904799654,-187.40607384,0.00011723,2]
[356647911,1742904847428,178.99,0.00025,60]
[356647913,1742904920244,-150.0,0.00010668,2]
[356647914,1742904963716,-130.06,0.00010668,2]
[356647915,1742904963740,-61.12600319,0.00011723,2]
[356647916,1742905023335,-188.0768862,0.00011723,2]
[356647919,1742905049678,-150.0,0.00011723,2]
[356647920,1742905069458,-150.0,0.00011715,2]
[356647921,1742905069483,-32.808462,0.00011723,2]